[Event "5th Schach960-Festival 2024"]
[Site "Berlin"]
[Date "2024.02.09"]
[Round "1.1"]
[White "Artukovic, Adis"]
[Black "Bluebaum, Matthias"]
[Result "0-1"]
[WhiteElo "2057"]
[BlackElo "2655"]
[Annotator "TA"]
[PlyCount "90"]
[EventDate "2024.02.08"]
[EventCountry "GER"]
[SourceTitle "playchess.com"]
[Source "ChessBase"]
[SourceQuality "1"]
[TimeControl "1500+30"]

{[%evp 9,89,42,32767,41,32767,37,32767,47,32767,33,32767,32767,32767,32767,32767,32767,32767,32767,32767,32767,32767,32767,32767,32767,32767,32767,32767,32767,32767,32767,32767,32767,32767,32767,32767,32767,32767,32767,32767,32767,32767,32767,32767,32767,32767,32767,32767,32767,32767,32767,32767,32767,32767,32767,32767,32767,32767,32767,32767,32767,32767,32767,32767,32767,32767,32767,32767,32767,32767,32767,32767,32767,32767,32767,32767,32767,32767,32767,32767,55,32767,49]} 1. d4 {[%emt 0:00:00]} Nf6 {[%emt 0:00:00]} 2. c4 {[%emt 0:00:00]} g6 {[%emt 0:00:00]} 3. Nc3 {[%emt 0:00:00]} Bg7 {[%emt 0:00:00]} 4. e4 {[%emt 0:00:00]} d6 {[%emt 0:00:00]} 5. Be2 {[%emt 0:00:00]} O-O {[%emt 0:00:00]} 6. Be3 {[%emt 0:00:00]} c5 {[%emt 0:00:00]} 7. d5 {[%emt 0:00:00]} e6 {[%emt 0:00:00]} 8. Nf3 {[%emt 0:00:00]} exd5 {[%emt 0:00:00]} 9. cxd5 {[%emt 0:00:00]} Nbd7 {[%emt 0:00:00][%cal Bb8d7,Bd7e5,Be5f7][%mdl 32]} 10. Nd2 {[%emt 0:00:00]} Ne5 {[%emt 0:00:00]} 11. h3 {[%emt 0:00:00]} Ne8 {[%emt 0:00:00]} 12. O-O {[%emt 0:00:00]} f5 {[%emt 0:00:00]} 13. f4 {[%emt 0:00:00]} Nf7 {[%emt 0:00:00]} 14. exf5 {[%emt 0:00:00]} Bxf5 {[%emt 0:00:00]} 15. g4 {[%emt 0:00:00]} Bd7 {[%emt 0:00:00]} 16. a4 {[%emt 0:00:00]} Nc7 {[%emt 0:00:00]} 17. Nc4 {[%emt 0:00:00]} b5 {[%emt 0:00:00]} 18. axb5 {[%emt 0:34:30]} Nxb5 {[%emt 0:00:00]} 19. Nxb5 {[%emt 0:00:00]} Bxb5 {[%emt 0:00:00]} 20. Qd2 {[%emt 0:00:00]} Re8 {[%emt 0:00:00]} 21. Rae1 {[%emt 0:00:00]} Rb8 {[%emt 0:00:00]} 22. b3 {[%emt 0:00:00]} a5 {[%emt 0:00:00]} 23. Bf2 {[%emt 0:00:00]} Qf6 {[%emt 0:00:00]} 24. Bd3 {[%emt 0:00:00]} Qc3 {[%emt 0:03:03]} 25. Qxc3 {[%emt 0:00:00]} Bxc3 {[%emt 0:00:03]} 26. Rc1 {[%emt 0:00:00]} Bxc4 {[%emt 0:03:49]} 27. Bxc4 {[%emt 0:00:00]} Bd2 {[%emt 0:00:06]} 28. Ra1 {[%emt 0:00:00]} Bxf4 {[%emt 0:00:11]} 29. Rxa5 {[%emt 0:00:00]} g5 {[%emt 0:02:07]} 30. Kg2 {[%emt 0:00:00]} Ne5 {[%emt 0:00:31]} 31. Bb5 {[%emt 0:00:00]} Re7 {[%emt 0:04:21]} 32. Bg3 {[%emt 0:02:13]} Ng6 {[%emt 0:08:59]} 33. Bc4 {[%emt 0:01:52]} Re3 {[%emt 0:00:25]} 34. Bf2 {[%emt 0:00:58]} Rc3 {[%emt 0:00:13]} 35. Be1 {[%emt 0:02:07]} Rc2+ {[%emt 0:01:49]} 36. Rf2 {[%emt 0:00:18]} Nh4+ {[%emt 0:00:14]} 37. Kf1 {[%emt 0:00:15]} Rc1 {[%emt 0:00:04]} 38. Raa2 {[%emt 0:01:20]} Bg3 {[%emt 0:09:10]} 39. Rac2 {[%emt 0:00:01]} Rd1 {[%emt 0:02:29]} 40. Rcd2 {[%emt 0:00:55]} Rxd2 {[%emt 0:00:44]} 41. Bxd2 {[%emt 0:00:00]} Bxf2 {[%emt 0:00:00]} 42. Kxf2 {[%emt 0:00:00]} h6 {[%emt 0:00:00]} 43. Ba5 {[%emt 0:00:00]} Rb7 {[%emt 0:00:00]} 44. Ke3 {[%emt 0:00:00]} Ng6 {[%emt 0:00:00]} 45. Ke4 {[%emt 0:00:00]} Re7+ {[%emt 0:00:00]} 0-1

[Event "5th Schach960-Festival 2024"]
[Site "Berlin"]
[Date "2024.02.09"]
[Round "1.2"]
[White "Kollars, Dmitrij"]
[Black "Zenker, Ulrich"]
[Result "1-0"]
[WhiteElo "2632"]
[BlackElo "2115"]
[Annotator "TA"]
[PlyCount "93"]
[EventDate "2024.02.08"]
[EventCountry "GER"]
[SourceTitle "playchess.com"]
[Source "ChessBase"]
[SourceQuality "1"]
[TimeControl "1500+30"]

{[%evp 9,12,31,11,32767,0]} 1. c4 {[%emt 0:00:00]} e5 {[%emt 0:00:00]} 2. g3 {[%emt 0:00:00]} Nf6 {[%emt 0:00:00]} 3. Bg2 {[%emt 0:00:00]} d5 {[%emt 0:00:00]} 4. cxd5 {[%emt 0:00:00]} Nxd5 {[%emt 0:00:00]} 5. Nf3 {[%emt 0:00:00]} Nc6 {[%emt 0:00:00]} 6. O-O {[%emt 0:00:00]} Nb6 {[%emt 0:00:00]} 7. Nc3 {[%emt 0:00:00]} Be7 {[%emt 0:00:00] ?ev?.} 8. b3 {[%emt 0:00:00]} Bf5 {[%emt 0:00:00]} 9. Bb2 {[%emt 0:00:00]} O-O {[%emt 0:00:00]} 10. d3 {[%emt 0:00:00]} Qc8 {[%emt 0:00:00]} 11. a4 {[%emt 0:00:00]} a5 {[%emt 0:00:00]} 12. Nb5 {[%emt 0:00:00]} f6 {[%emt 0:00:00]} 13. d4 {[%emt 0:00:00]} Rd8 {[%emt 0:00:50]} 14. Qc1 {[%emt 0:00:00]} exd4 {[%emt 0:02:56]} 15. Nfxd4 {[%emt 0:00:00]} Nxd4 {[%emt 0:00:05]} 16. Nxd4 {[%emt 0:00:00]} Bg6 {[%emt 0:03:20]} 17. Rd1 {[%emt 0:10:57]} Nd5 {[%emt 0:07:44]} 18. h4 {[%emt 0:04:00]} Nb4 {[%emt 0:06:13]} 19. Kh2 {[%emt 0:02:29]} c5 {[%emt 0:04:37]} 20. Bh3 {[%emt 0:01:15]} Qc7 {[%emt 0:00:09]} 21. Qc4+ {[%emt 0:01:45]} Bf7 {[%emt 0:00:04]} 22. Ne6 {[%emt 0:06:19]} Qb6 {[%emt 0:03:14]} 23. Qg4 {[%emt 0:04:42]} Qxe6 {[%emt 0:00:07]} 24. Qxe6 {[%emt 0:00:05]} Bxe6 {[%emt 0:00:02]} 25. Bxe6+ {[%emt 0:00:05][%cal Bh3e6,Be6c4,Bc4d3][%mdl 32]} Kf8 {[%emt 0:00:02]} 26. h5 {[%emt 0:02:46]} Nc2 {[%emt 0:02:45]} 27. Rac1 {[%emt 0:00:46]} Nd4 {[%emt 0:00:04]} 28. Bc4 {[%emt 0:01:30]} Rd6 {[%emt 0:01:31]} 29. Kg2 {[%emt 0:01:23]} Rad8 {[%emt 0:06:17]} 30. Bc3 Nc6 31. Rxd6 Rxd6 32. Bd3 h6 33. f4 Nb4 34. Bb1 b6 35. Kf3 Nc6 36. e3 Nb4 37. g4 Nd3 38. Rf1 Nb4 39. Ke2 Kg8 40. Bg6 Rd8 41. Bf5 Kf7 42. Bd2 Rd6 43. Rc1 Rd8 44. Rc4 Rd6 45. Re4 Ke8 46. Re6 c4 47. bxc4 {[%emt 0:09:33]} 1-0

[Event "5th Schach960-Festival 2024"]
[Site "Berlin"]
[Date "2024.02.09"]
[Round "1.3"]
[White "Bastians, Felix"]
[Black "Fedorchuk, Sergey A."]
[Result "0-1"]
[WhiteElo "2157"]
[BlackElo "2550"]
[Annotator "TA"]
[PlyCount "83"]
[EventDate "2024.02.08"]
[EventCountry "GER"]
[SourceTitle "playchess.com"]
[Source "ChessBase"]
[SourceQuality "1"]
[TimeControl "1500+30"]

{[%evp 9,18,11,17,8,45,19,16,0,0,32767,0]} 1. c4 {[%emt 0:00:00]} Nf6 {[%emt 0:00:00]} 2. Nc3 {[%emt 0:00:00]} c5 {[%emt 0:00:00]} 3. Nf3 {[%emt 0:00:00]} Nc6 {[%emt 0:00:00]} 4. d4 {[%emt 0:00:00]} cxd4 {[%emt 0:00:00]} 5. Nxd4 {[%emt 0:00:00]} e6 {[%emt 0:00:00]} 6. g3 {[%emt 0:00:00]} d5 {[%emt 0:00:00]} 7. Bg2 {[%emt 0:00:00]} Bc5 {[%emt 0:00:00]} 8. Nxc6 {[%emt 0:00:00] The position is equal.} bxc6 {[%emt 0:00:00]} 9. O-O {[%emt 0:00:00]} O-O {[%emt 0:00:00]} 10. Qc2 {[%emt 0:00:00]} Be7 {[%emt 0:00:00] ?ev?.} 11. Rd1 {[%emt 0:00:00]} Qa5 {[%emt 0:06:26]} 12. b3 {[%emt 0:00:00]} Qa6 {[%emt 0:02:44]} 13. Bb2 {[%emt 0:00:00]} Rd8 {[%emt 0:07:13]} 14. Na4 {[%emt 0:00:00]} Bb7 {[%emt 0:00:22][%cal Bc8b7,Bb7a6,Ba6e2,Be2h5,Bh5g6][%mdl 32]} 15. c5 {[%emt 0:00:00]} Qa5 {[%emt 0:03:05]} 16. Bc3 {[%emt 0:00:00]} Qc7 {[%emt 0:00:10]} 17. Qb2 {[%emt 0:00:00]} Ba6 {[%emt 0:00:30]} 18. Rac1 {[%emt 0:00:00]} Nd7 {[%emt 0:06:53]} 19. Bxg7 {[%emt 0:00:00]} Bxe2 {[%emt 0:00:57]} 20. Re1 {[%emt 0:00:00]} Bh5 {[%emt 0:00:18]} 21. Bc3 {[%emt 0:00:00]} Bg6 {[%emt 0:01:42]} 22. Qd2 {[%emt 0:00:00]} Re8 {[%emt 0:00:17]} 23. f4 {[%emt 0:00:00]} Bf6 {[%emt 0:01:43]} 24. Bxf6 {[%emt 0:00:00]} Nxf6 {[%emt 0:00:02]} 25. Nc3 {[%emt 0:00:00]} Rad8 {[%emt 0:00:28]} 26. b4 {[%emt 0:00:00]} Ne4 {[%emt 0:02:25]} 27. Nxe4 {[%emt 0:00:00]} dxe4 {[%emt 0:00:11]} 28. Qb2 {[%emt 0:00:00]} f5 {[%emt 0:01:16]} 29. a4 {[%emt 0:00:00]} e5 {[%emt 0:01:51]} 30. fxe5 {[%emt 0:00:00]} Qxe5 {[%emt 0:00:10]} 31. Qxe5 {[%emt 0:00:52]} Rxe5 {[%emt 0:00:01]} 32. Bf1 {[%emt 0:00:12]} Rb8 {[%emt 0:00:52]} 33. b5 {[%emt 0:00:31]} Be8 {[%emt 0:00:33]} 34. Red1 {[%emt 0:00:47]} Kf8 {[%emt 0:00:30]} 35. Rd6 {[%emt 0:01:28]} Ke7 {[%emt 0:00:37]} 36. bxc6 {[%emt 0:03:48]} Rxc5 {[%emt 0:01:13]} 37. Rd7+ {[%emt 0:02:39]} Bxd7 {[%emt 0:00:01]} 38. Rxc5 {[%emt 0:00:06]} Rc8 {[%emt 0:01:22]} 39. Bb5 {[%emt 0:01:27]} Rc7 {[%emt 0:00:32]} 40. Re5+ {[%emt 0:07:36]} Be6 {[%emt 0:00:03]} 41. Bc4 {[%emt 0:00:03]} Rxc6 {[%emt 0:00:17]} 42. Bxe6 {[%emt 0:00:02] Black got outplayed after the opening.   Weighted Error Value: White=0.07 (flawless) /Black=0.12 (very precise) .  Inaccurate:     	White=1     	Black=1      OK:         	---       	Black=1} 0-1

[Event "5th Schach960-Festival 2024"]
[Site "Berlin"]
[Date "2024.02.09"]
[Round "1.4"]
[White "Azarov, Sergei"]
[Black "Agafonov, Yuri Dr"]
[Result "1-0"]
[WhiteElo "2596"]
[BlackElo "2063"]
[Annotator "TA"]
[PlyCount "86"]
[EventDate "2024.02.08"]
[EventCountry "GER"]
[SourceTitle "playchess.com"]
[Source "ChessBase"]
[SourceQuality "1"]
[TimeControl "1500+30"]

{[%evp 9,86,4,2,0,8,4,23,20,16,18,25,10,12,0,39,-8,-8,-6,12,-24,-26,-65,-67,-46,-68,-48,-36,-40,-41,-48,-49,-61,-43,-35,-30,-56,-49,-49,-43,-49,-57,-61,-46,-87,-85,-72,-88,-184,-177,-193,-188,-217,-216,-208,-196,-209,-169,-164,-166,-188,-201,-217,-209,-261,-264,-280,-287,-296,-297,-297,-294,-348,-329,-309,-310,-303,-287,-451,-444]} 1. d4 {[%emt 0:00:00]} Nf6 {[%emt 0:00:00]} 2. Nf3 {[%emt 0:00:00]} d5 {[%emt 0:00:00]} 3. c4 {[%emt 0:00:00]} e6 {[%emt 0:00:00]} 4. Nc3 {[%emt 0:00:00]} c6 {[%emt 0:00:00]} 5. cxd5 {[%emt 0:00:00]} exd5 {[%emt 0:00:00]} 6. Bg5 {[%emt 0:00:00]} Be7 {[%emt 0:00:00]} 7. e3 {[%emt 0:00:00]} Nbd7 {[%emt 0:00:00]} 8. Qc2 {[%emt 0:00:00] White has an edge.} Nh5 {[%emt 0:00:00]} 9. Bxe7 {[%emt 0:00:00]} Qxe7 {[%emt 0:00:00]} 10. Be2 {[%emt 0:00:00]} g6 {[%emt 0:00:00]} 11. g4 {[%emt 0:00:00]} Ng7 {[%emt 0:00:00]} 12. h4 {[%emt 0:00:00]} (12. Kc1 $14 {is superior.}) 12... Nb6 {[%emt 0:00:00]} 13. Ne5 {[%emt 0:00:00][%cal Bf3e5,Be5d3,Bd3c5][%mdl 32]} Be6 {[%emt 0:00:00]} 14. Nd3 {[%emt 0:00:00]} h5 {[%emt 0:00:00]} 15. gxh5 {[%emt 0:00:00]} Nxh5 {[%emt 0:00:00]} 16. Nc5 {[%emt 0:00:00]} Bf5 {[%emt 0:00:00]} 17. Qb3 {[%emt 0:00:00]} Ng7 {[%emt 0:00:00]} 18. a4 {[%emt 0:00:00]} Rb8 {[%emt 0:00:00]} 19. a5 {[%emt 0:00:00]} Nd7 {[%emt 0:00:00]} 20. Nxd7 {[%emt 0:00:00]} Bxd7 {[%emt 0:00:00]} 21. Qa3 {[%emt 0:00:00]} Qxa3 {[%emt 0:07:15]} 22. bxa3 {[%emt 0:00:00]} Ke7 {[%emt 0:03:56]} 23. Kd2 {[%emt 0:00:00]} Rbe8 {[%emt 0:07:36]} 24. Rab1 {[%emt 0:00:00]} Bc8 {[%emt 0:00:10]} 25. Bf3 {[%emt 0:00:00]} Rh6 {[%emt 0:04:43]} 26. e4 {[%emt 0:00:00]} dxe4 {[%emt 0:00:33] Black converts the advantage convincingly.} 27. Bxe4 {[%emt 0:00:00][%cal Oa5a6]} Rd8 {[%emt 0:03:15]} 28. Ke3 {[%emt 0:00:00]} (28. Rb4 $17 {was necessary.}) 28... Rh5 $19 {[%emt 0:01:24]} 29. a4 {[%emt 0:00:00]} Rxa5 {[%emt 0:00:31]} 30. Rhd1 {[%emt 0:00:00]} Nf5+ {[%emt 0:04:04]} 31. Bxf5 {[%emt 0:00:00]} Rxf5 {[%emt 0:00:07]} 32. Rb4 {[%emt 0:00:42]} Rh5 {[%emt 0:01:12]} 33. d5 {[%emt 0:00:39]} cxd5 {[%emt 0:00:18]} 34. Rbd4 {[%emt 0:00:07]} Be6 {[%emt 0:01:31]} 35. Rb1 {[%emt 0:00:56]} b6 {[%emt 0:01:38]} 36. a5 {[%emt 0:03:05]} Rc8 {[%emt 0:03:14]} ({Resist} 36... bxa5 37. Rb7+ Rd7 38. Rb5 $19) 37. axb6 {[%emt 0:00:53]} Rxc3+ {[%emt 0:01:56]} 38. Kd2 {[%emt 0:00:10] [#]} Rc8 $1 {[%emt 0:00:10]} 39. bxa7 {[%emt 0:00:07] And now Rb8 would win.} Ra8 {[%emt 0:00:54]} 40. Ra4 {[%emt 0:01:03]} Rhh8 {[%emt 0:00:30] Wards off Rb8} 41. Rb7+ {[%emt 0:00:13]} Kd6 {[%emt 0:00:00]} 42. Ra6+ {[%emt 0:00:00]} Ke5 {[%emt 0:00:00][%cal Oe5d4]} 43. Rab6 {[%emt 0:00:00]} (43. Ke3 $142) 43... Rxh4 {[%emt 0:00:00][%mdl 32768] Weighted Error Value: White=0.20 (precise) /Black=0.05 (flawless) .  Mistake:       	White=3     	---        Inaccurate:     	White=4     	Black=1      OK:         	White=9     	Black=15     Best:        	White=4     	Black=3      Strong:       	---       	Black=1     . Loss on time!?} 1-0

[Event "5th Schach960-Festival 2024"]
[Site "Berlin"]
[Date "2024.02.09"]
[Round "1.5"]
[White "Piz, Maxim"]
[Black "Fridman, Daniel"]
[Result "0-1"]
[ECO "E04"]
[WhiteElo "2149"]
[BlackElo "2588"]
[Annotator "ChessBase"]
[PlyCount "104"]
[EventDate "2024.02.08"]
[EventCountry "GER"]
[SourceTitle "playchess.com"]
[Source "ChessBase"]
[SourceQuality "1"]
[TimeControl "1500+30"]

1. Nf3 {[%emt 0:00:00]} d5 {[%emt 0:00:00]} 2. g3 {[%emt 0:00:00]} Nf6 {[%emt 0:00:00]} 3. Bg2 {[%emt 0:00:00]} c5 {[%emt 0:00:00]} 4. O-O {[%emt 0:00:00]} Nc6 {[%emt 0:00:00]} 5. d4 {[%emt 0:00:00]} e6 {[%emt 0:00:00]} 6. c4 {[%emt 0:00:00]} dxc4 {[%emt 0:00:00]} 7. Qa4 {[%emt 0:00:00]} Bd7 {[%emt 0:00:00]} 8. Qxc4 {[%emt 0:00:00]} b5 {[%emt 0:00:00]} 9. Qd3 {[%emt 0:00:00]} c4 {[%emt 0:00:00]} 10. Qc2 {[%emt 0:00:00]} Be7 {[%emt 0:00:00]} 11. Nc3 {[%emt 0:00:00]} O-O {[%emt 0:00:00]} 12. Bg5 {[%emt 0:00:00]} Qb6 {[%emt 0:00:00]} 13. a3 {[%emt 0:00:00]} Rac8 {[%emt 0:00:00]} 14. e4 {[%emt 0:00:00]} b4 {[%emt 0:00:00]} 15. axb4 {[%emt 0:00:00]} Nxb4 {[%emt 0:00:00]} 16. Qe2 {[%emt 0:00:00]} h6 {[%emt 0:00:00]} 17. Be3 {[%emt 0:00:00]} Ng4 {[%emt 0:00:00]} 18. Bc1 {[%emt 0:00:00]} Nf6 {[%emt 0:00:00]} 19. Be3 {[%emt 0:00:00]} Ng4 {[%emt 0:00:00]} 20. Bc1 {[%emt 0:00:00]} Nf6 {[%emt 0:00:00]} 21. Rd1 {[%emt 0:00:00]} a6 {[%emt 0:00:00]} 22. Ne5 {[%emt 0:00:00]} Bb5 {[%emt 0:00:00]} 23. Be3 {[%emt 0:00:00]} Rfd8 {[%emt 0:00:00]} 24. d5 {[%emt 0:00:00]} Bc5 {[%emt 0:00:00]} 25. Nxf7 {[%emt 0:00:00]} Kxf7 {[%emt 0:00:00]} 26. dxe6+ {[%emt 0:00:00]} Kg8 {[%emt 0:12:21]} 27. e5 {[%emt 0:10:49]} Bxe3 {[%emt 0:08:47]} 28. exf6 {[%emt 0:01:04]} Qxe6 {[%emt 0:00:41]} 29. fxg7 {[%emt 0:08:39]} Bxf2+ {[%emt 0:01:04]} 30. Kxf2 {[%emt 0:08:22]} Nd3+ {[%emt 0:00:27]} 31. Kg1 {[%emt 0:03:17]} Qb6+ {[%emt 0:00:54]} 32. Kf1 {[%emt 0:00:01]} Qf6+ {[%emt 0:02:29]} 33. Bf3 {[%emt 0:02:55]} Ne5 {[%emt 0:04:52]} 34. Nxb5 {[%emt 0:01:05]} axb5 {[%emt 0:01:40]} 35. Ra3 {[%emt 0:02:45]} Rd3 {[%emt 0:02:36]} 36. Rdxd3 {[%emt 0:00:39]} cxd3 {[%emt 0:00:05]} 37. Rxd3 {[%emt 0:00:05]} Nxd3 {[%emt 0:00:24]} 38. Qxd3 {[%emt 0:00:04]} Rd8 {[%emt 0:01:11]} 39. Qe2 {[%emt 0:02:10]} Kxg7 {[%emt 0:00:17]} 40. Kg2 {[%emt 0:00:12]} Qg5 {[%emt 0:00:28]} 41. Qe6 {[%emt 0:00:23]} Rd2+ {[%emt 0:02:25]} 42. Kh3 {[%emt 0:01:35]} Qf6 {[%emt 0:00:24]} 43. Qg4+ {[%emt 0:01:45]} Kf7 {[%emt 0:04:41]} 44. Qh5+ {[%emt 0:00:00]} Kg7 {[%emt 0:00:00]} 45. Qg4+ {[%emt 0:00:00]} Kh8 {[%emt 0:00:00]} 46. b4 {[%emt 0:00:00]} Rd4 {[%emt 0:00:00]} 47. Qc8+ {[%emt 0:00:00]} Qd8 {[%emt 0:00:00]} 48. Qe6 {[%emt 0:00:00]} Kg7 {[%emt 0:00:00]} 49. Bc6 {[%emt 0:00:00]} Qg5 {[%emt 0:00:00]} 50. Be8 {[%emt 0:00:00]} Qf6 {[%emt 0:00:00]} 51. Qxf6+ {[%emt 0:00:00]} Kxf6 {[%emt 0:00:00]} 52. Bxb5 {[%emt 0:00:00]} Rxb4 {[%emt 0:00:00]} 0-1

[Event "5th Schach960-Festival 2024"]
[Site "Berlin"]
[Date "2024.02.09"]
[Round "1.6"]
[White "Kunin, Vitaly"]
[Black "Bolk, Matthias"]
[Result "1-0"]
[WhiteElo "2521"]
[BlackElo "2099"]
[Annotator "RC"]
[PlyCount "59"]
[EventDate "2024.02.08"]
[EventCountry "GER"]
[SourceTitle "playchess.com"]
[Source "ChessBase"]
[SourceQuality "1"]
[TimeControl "1500+30"]

1. e4 {[%emt 0:00:00]} c6 {[%emt 0:00:00]} 2. d4 {[%emt 0:00:00]} d5 {[%emt 0:00:00]} 3. e5 {[%emt 0:00:00]} Bf5 {[%emt 0:00:00]} 4. h4 {[%emt 0:00:00]} h5 {[%emt 0:00:00]} 5. Bd3 {[%emt 0:00:00]} Bxd3 {[%emt 0:00:00]} 6. Qxd3 {[%emt 0:00:00]} Qa5+ {[%emt 0:00:00]} 7. b4 {[%emt 0:00:00]} Qa6 {[%emt 0:00:00]} 8. e6 {[%emt 0:00:00]} Qxd3 {[%emt 0:00:00]} 9. cxd3 {[%emt 0:00:00]} fxe6 {[%emt 0:00:00]} 10. Nd2 {[%emt 0:00:00]} e5 {[%emt 0:00:00]} 11. dxe5 {[%emt 0:00:00]} e6 {[%emt 0:00:00]} 12. Rb1 {[%emt 0:00:00]} Nh6 {[%emt 0:00:00]} 13. Ndf3 {[%emt 0:00:00]} Nf5 {[%emt 0:00:00]} 14. Ne2 {[%emt 0:00:00]} Na6 {[%emt 0:00:00]} 15. Bd2 {[%emt 0:00:00]} Be7 {[%emt 0:00:00]} 16. d4 {[%emt 0:00:00]} Nc7 {[%emt 0:00:00]} 17. g3 {[%emt 0:00:00]} g6 {[%emt 0:00:00]} 18. O-O {[%emt 0:00:00]} Kd7 {[%emt 0:00:00]} 19. a4 {[%emt 0:00:00]} Rab8 {[%emt 0:00:00]} 20. Rfc1 {[%emt 0:00:00]} Na8 {[%emt 0:00:00]} 21. Nf4 {[%emt 0:00:00]} Rhg8 {[%emt 0:00:00]} 22. Nd3 {[%emt 0:00:00]} Nb6 {[%emt 0:00:00]} 23. Nb2 {[%emt 0:00:00]} Rgf8 {[%emt 0:00:00]} 24. Kg2 {[%emt 0:00:00]} Rf7 {[%emt 0:00:00]} 25. Ra1 {[%emt 0:00:00]} Rbf8 {[%emt 0:00:00]} 26. Rf1 {[%emt 0:00:00]} Ng7 {[%emt 0:01:51]} 27. Ng1 {[%emt 0:00:00]} Nf5 {[%emt 0:00:42]} 28. Nf3 {[%emt 0:00:00]} Ng7 {[%emt 0:00:48]} 29. Ng1 {[%emt 0:00:00]} Nf5 {[%emt 0:00:59]} 30. Nf3 {[%emt 0:15:00]} 1-0

[Event "5th Schach960-Festival 2024"]
[Site "Berlin"]
[Date "2024.02.09"]
[Round "1.7"]
[White "Thomsen, Phil"]
[Black "Van den Doel, Erik"]
[Result "0-1"]
[WhiteElo "2102"]
[BlackElo "2551"]
[Annotator "TA"]
[PlyCount "81"]
[EventDate "2024.02.08"]
[EventCountry "GER"]
[SourceTitle "playchess.com"]
[Source "ChessBase"]
[SourceQuality "1"]
[TimeControl "1500+30"]

{[%evp 9,67,10,32767,4,32767,32767,32767,4,32767,32767,32767,8,32767,32767,32767,9,32767,32767,32767,14,32767,4,32767,32767,32767,32767,32767,32767,32767,32767,32767,32767,32767,32767,32767,32767,32767,32767,32767,32767,32767,32767,32767,32767,32767,32767,32767,32767,32767,32767,32767,32767,32767,32767,32767,16,32767,32767,32767,12]} 1. d4 {[%emt 0:00:00]} Nf6 {[%emt 0:00:00]} 2. c4 {[%emt 0:00:00]} e6 {[%emt 0:00:00]} 3. Nc3 {[%emt 0:00:00]} Bb4 {[%emt 0:00:00]} 4. e3 {[%emt 0:00:00]} O-O {[%emt 0:00:00]} 5. Bd3 {[%emt 0:00:00]} c5 {[%emt 0:00:00]} 6. Nf3 {[%emt 0:00:00]} d5 {[%emt 0:00:00]} 7. O-O {[%emt 0:00:00]} dxc4 {[%emt 0:00:00]} 8. Bxc4 {[%emt 0:00:00]} Nbd7 {[%emt 0:00:00]} 9. a3 {[%emt 0:00:00]} cxd4 {[%emt 0:00:00]} 10. axb4 {[%emt 0:00:00]} dxc3 {[%emt 0:00:00]} 11. bxc3 {[%emt 0:00:00]} Qc7 {[%emt 0:00:00]} 12. Bd3 {[%emt 0:00:00]} Qxc3 {[%emt 0:00:00]} 13. Rb1 {[%emt 0:00:00]} Qc7 {[%emt 0:00:00]} 14. Bb2 {[%emt 0:00:00]} a5 {[%emt 0:00:00]} 15. Rc1 {[%emt 0:00:00]} Qb8 {[%emt 0:00:00]} 16. b5 {[%emt 0:00:00]} e5 {[%emt 0:02:25]} 17. Bb1 {[%emt 0:00:06]} b6 {[%emt 0:05:37]} 18. Ba3 {[%emt 0:00:13]} Nc5 {[%emt 0:00:26]} 19. Bxc5 {[%emt 0:01:03]} bxc5 {[%emt 0:00:04]} 20. Rxc5 {[%emt 0:00:08]} Re8 {[%emt 0:02:40]} 21. Ng5 {[%emt 0:07:31]} h6 {[%emt 0:01:53]} 22. Ne4 {[%emt 0:00:12]} Nxe4 {[%emt 0:00:45]} 23. Bxe4 {[%emt 0:00:05]} Bb7 {[%emt 0:00:22]} 24. Bc6 {[%emt 0:00:13]} Bxc6 {[%emt 0:05:04]} 25. bxc6 {[%emt 0:00:10]} a4 {[%emt 0:05:41]} 26. c7 {[%emt 0:01:14]} Qb6 {[%emt 0:02:02]} 27. Qd5 {[%emt 0:10:05]} Rac8 {[%emt 0:04:07]} 28. Rfc1 {[%emt 0:01:06]} Qb3 {[%emt 0:02:00]} 29. Qxb3 {[%emt 0:01:06]} axb3 {[%emt 0:00:31]} 30. Rb5 {[%emt 0:00:03]} f6 {[%emt 0:01:39]} 31. Rxb3 {[%emt 0:00:28]} Kf7 {[%emt 0:00:09]} 32. g4 {[%emt 0:02:41][%cal Bg2g4,Bg4h5,Bh5g6,Bg6f5][%mdl 32]} Re7 {[%emt 0:01:03][%mdl 4096] Endgame.} 33. Rbc3 {[%emt 0:00:04]} Rd7 {[%emt 0:01:41]} 34. Kg2 {[%emt 0:00:36]} Kg6 {[%emt 0:01:22]} 35. Rc5 {[%emt 0:02:25] ?ev?.} h5 {[%emt 0:00:51]} 36. gxh5+ {[%emt 0:01:27]} Kxh5 {[%emt 0:00:06]} 37. f4 {[%emt 0:00:03]} Kg6 {[%emt 0:01:52]} 38. fxe5 {[%emt 0:00:05]} fxe5 {[%emt 0:00:03]} 39. Kf3 {[%emt 0:00:07]} Kf5 {[%emt 0:01:12]} 40. Rc6 {[%emt 0:00:05]} Rf7 {[%emt 0:00:47]} 41. h4 {[%emt 0:00:00]} 0-1